[Event "Titled Tuesday Blitz July 18 Early 2023"]
[White "Korpics, Zsolt"]
[Black "Horak, Martin"]
[WhiteFideId "705241"]
[BlackFideId "367095"]
[WhiteElo "2333"]
[BlackElo "2498"]
[Result "0-1"]
[Round "7"]
[TimeControl "180+2"]
[Date "2023.07.18"]
[WhiteClock "0:00:09"]
[BlackClock "0:01:09"]
[Board "140"]

1. e4 {[%clk 0:03:00]}  c5 {[%clk 0:02:59]} 2. Nf3 {[%clk 0:02:59]}  Nc6 {[%clk 0:03:00]} 3. d4 {[%clk 0:02:58]}  cxd4 {[%clk 0:03:01]} 4. Nxd4 {[%clk 0:02:58]}  Nf6 {[%clk 0:03:02]} 5. Nc3 {[%clk 0:02:50]}  e5 {[%clk 0:03:02]} 6. Ndb5 {[%clk 0:02:48]}  d6 {[%clk 0:02:57]} 7. Bg5 {[%clk 0:02:48]}  a6 {[%clk 0:02:53]} 8. Na3 {[%clk 0:02:49]}  b5 {[%clk 0:02:53]} 9. Nd5 {[%clk 0:02:49]}  Be7 {[%clk 0:02:53]} 10. Bxf6 {[%clk 0:02:49]}  Bxf6 {[%clk 0:02:54]} 11. c4 {[%clk 0:02:49]}  b4 {[%clk 0:02:53]} 12. Nc2 {[%clk 0:02:49]}  O-O {[%clk 0:02:54]} 13. g3 {[%clk 0:02:48]}  a5 {[%clk 0:02:49]} 14. Bg2 {[%clk 0:02:47]}  Bg5 {[%clk 0:02:47]} 15. O-O {[%clk 0:02:47]}  Be6 {[%clk 0:02:46]} 16. f4 {[%clk 0:02:38]}  Bf6 {[%clk 0:02:28]} 17. Nxf6+ {[%clk 0:01:23]}  Qxf6 {[%clk 0:02:21]} 18. Qxd6 {[%clk 0:01:23]}  Bxc4 {[%clk 0:02:18]} 19. Qxf6 {[%clk 0:01:23]}  gxf6 {[%clk 0:02:18]} 20. Rfd1 {[%clk 0:01:23]}  Rfd8 {[%clk 0:02:14]} 21. b3 {[%clk 0:01:11]}  Be2 {[%clk 0:02:05]} 22. Re1 {[%clk 0:01:10]}  Rd2 {[%clk 0:02:00]} 23. Ne3 {[%clk 0:01:09]}  Nd4 {[%clk 0:01:50]} 24. h4 {[%clk 0:00:46]}  Rc8 {[%clk 0:01:45]} 25. Kh2 {[%clk 0:00:42]}  Bf3 {[%clk 0:01:21]} 26. Kh3 {[%clk 0:00:40]}  h5 {[%clk 0:01:18]} 27. Rf1 {[%clk 0:00:35]}  Bxg2+ {[%clk 0:01:15]} 28. Nxg2 {[%clk 0:00:35]}  Rcc2 {[%clk 0:01:14]} 29. Rg1 {[%clk 0:00:21]}  Nf3 {[%clk 0:01:14]} 30. fxe5 {[%clk 0:00:15]}  fxe5 {[%clk 0:01:12]} 31. Raf1 {[%clk 0:00:04]}  Nxg1+ {[%clk 0:01:10]} 32. Rxg1 {[%clk 0:00:05]}  Rxa2 {[%clk 0:01:10]} 33. g4 {[%clk 0:00:06]}  hxg4+ {[%clk 0:01:07]} 34. Kg3 {[%clk 0:00:07]}  Rxg2+ {[%clk 0:01:05]} 35. Rxg2 {[%clk 0:00:05]}  Rxg2+ {[%clk 0:01:06]} 36. Kxg2 {[%clk 0:00:06]}  a4 {[%clk 0:01:06]} 37. bxa4 {[%clk 0:00:06]}  b3 {[%clk 0:01:07]} 38. a5 {[%clk 0:00:06]}  b2 {[%clk 0:01:08]} 39. a6 {[%clk 0:00:07]}  b1=Q {[%clk 0:01:09]} 40. a7 {[%clk 0:00:08]}  Qa2+ {[%clk 0:01:10]} 41. Kg3 {[%clk 0:00:07]}  Qxa7 {[%clk 0:01:11]} 42. Kxg4 {[%clk 0:00:08]}  Qe3 {[%clk 0:01:10]} 43. Kf5 {[%clk 0:00:09]}  Qf4# {[%clk 0:01:09]} 0-1


[Site "https://www.chess.com"]

[Event "Titled Tuesday Blitz July 18 Early 2023"]
[White "Ansh M Shah"]
[Black "kiwibobo"]
[WhiteFideId "25033379"]
[WhiteElo "2486"]
[BlackElo "2324"]
[Result "1-0"]
[Round "7"]
[TimeControl "180+2"]
[Date "2023.07.18"]
[WhiteClock "0:00:04"]
[BlackClock "0:00:04"]
[Board "141"]

1. Nf3 {[%clk 0:03:00]}  Nf6 {[%clk 0:03:00]} 2. g3 {[%clk 0:02:59]}  g6 {[%clk 0:03:00]} 3. Bg2 {[%clk 0:03:00]}  Bg7 {[%clk 0:03:00]} 4. O-O {[%clk 0:03:01]}  O-O {[%clk 0:03:01]} 5. b3 {[%clk 0:03:00]}  d5 {[%clk 0:02:57]} 6. Bb2 {[%clk 0:03:00]}  c6 {[%clk 0:02:56]} 7. c4 {[%clk 0:02:59]}  a5 {[%clk 0:02:50]} 8. Nc3 {[%clk 0:02:59]}  Ne4 {[%clk 0:02:46]} 9. Qc2 {[%clk 0:02:58]}  Bf5 {[%clk 0:02:45]} 10. d3 {[%clk 0:02:55]}  Nf6 {[%clk 0:02:21]} 11. Rad1 {[%clk 0:02:44]}  Na6 {[%clk 0:02:17]} 12. Rfe1 {[%clk 0:02:43]}  Nc5 {[%clk 0:01:55]} 13. Nd4 {[%clk 0:02:06]}  Bc8 {[%clk 0:01:50]} 14. Nf3 {[%clk 0:02:06]}  Bf5 {[%clk 0:01:49]} 15. Nh4 {[%clk 0:01:59]}  Bc8 {[%clk 0:01:45]} 16. e4 {[%clk 0:01:44]}  d4 {[%clk 0:01:42]} 17. e5 {[%clk 0:01:45]}  Ng4 {[%clk 0:00:54]} 18. Ne4 {[%clk 0:01:12]}  Nxe4 {[%clk 0:00:48]} 19. Rxe4 {[%clk 0:01:13]}  Nxe5 {[%clk 0:00:40]} 20. Rxd4 {[%clk 0:01:10]}  Qc7 {[%clk 0:00:36]} 21. Re4 {[%clk 0:01:09]}  Be6 {[%clk 0:00:18]} 22. Rde1 {[%clk 0:00:48]}  Nd7 {[%clk 0:00:17]} 23. Bxg7 {[%clk 0:00:44]}  Kxg7 {[%clk 0:00:18]} 24. d4 {[%clk 0:00:39]}  Nf6 {[%clk 0:00:15]} 25. R4e2 {[%clk 0:00:32]}  Rad8 {[%clk 0:00:15]} 26. Qc3 {[%clk 0:00:29]}  Qb6 {[%clk 0:00:09]} 27. Nf3 {[%clk 0:00:26]}  Bg4 {[%clk 0:00:07]} 28. Rxe7 {[%clk 0:00:25]}  Bxf3 {[%clk 0:00:07]} 29. Bxf3 {[%clk 0:00:26]}  Qxd4 {[%clk 0:00:05]} 30. Qxd4 {[%clk 0:00:25]}  Rxd4 {[%clk 0:00:05]} 31. Rxb7 {[%clk 0:00:26]}  Rd2 {[%clk 0:00:06]} 32. Re2 {[%clk 0:00:17]}  Rd1+ {[%clk 0:00:06]} 33. Kg2 {[%clk 0:00:17]}  Ra1 {[%clk 0:00:05]} 34. Ra7 {[%clk 0:00:16]}  Rd8 {[%clk 0:00:03]} 35. Rxa5 {[%clk 0:00:17]}  Rdd1 {[%clk 0:00:03]} 36. h3 {[%clk 0:00:13]}  Rg1+ {[%clk 0:00:03]} 37. Kh2 {[%clk 0:00:14]}  h5 {[%clk 0:00:03]} 38. Ra7 {[%clk 0:00:10]}  Rgf1 {[%clk 0:00:03]} 39. Rae7 {[%clk 0:00:08]}  Nh7 {[%clk 0:00:03]} 40. Bg2 {[%clk 0:00:06]}  Rfc1 {[%clk 0:00:03]} 41. Rc7 {[%clk 0:00:07]}  Ng5 {[%clk 0:00:03]} 42. Rxc6 {[%clk 0:00:05]}  h4 {[%clk 0:00:04]} 43. gxh4 {[%clk 0:00:05]}  Ne6 {[%clk 0:00:04]} 44. Rcxe6 {[%clk 0:00:05]}  fxe6 {[%clk 0:00:05]} 45. Bf3 {[%clk 0:00:04]}  Rxa2 {[%clk 0:00:05]} 46. Rxa2 {[%clk 0:00:03]}  Rxc4 {[%clk 0:00:06]} 47. bxc4 {[%clk 0:00:03]}  e5 {[%clk 0:00:04]} 48. Re2 {[%clk 0:00:04]} 1-0


[Site "https://www.chess.com"]

[Event "Titled Tuesday Blitz July 18 Early 2023"]
[White "ExchangeAB"]
[Black "Ljukin, Sergei"]
[BlackFideId "14102200"]
[WhiteElo "2319"]
[BlackElo "2466"]
[Result "0-1"]
[Round "7"]
[TimeControl "180+2"]
[Date "2023.07.18"]
[WhiteClock "0:00:00"]
[BlackClock "0:00:05"]
[Board "142"]

1. d4 {[%clk 0:03:00]}  d5 {[%clk 0:02:48]} 2. Nc3 {[%clk 0:03:00]}  Nf6 {[%clk 0:02:48]} 3. Bf4 {[%clk 0:03:00]}  a6 {[%clk 0:02:47]} 4. e3 {[%clk 0:03:00]}  e6 {[%clk 0:02:47]} 5. Nf3 {[%clk 0:02:59]}  Bb4 {[%clk 0:02:44]} 6. Bd3 {[%clk 0:02:49]}  c5 {[%clk 0:02:44]} 7. dxc5 {[%clk 0:02:46]}  Bxc5 {[%clk 0:02:44]} 8. Ne5 {[%clk 0:02:44]}  Nc6 {[%clk 0:02:42]} 9. O-O {[%clk 0:02:13]}  O-O {[%clk 0:02:40]} 10. e4 {[%clk 0:02:04]}  d4 {[%clk 0:02:30]} 11. Ne2 {[%clk 0:01:52]}  Nh5 {[%clk 0:02:08]} 12. Nxc6 {[%clk 0:01:52]}  bxc6 {[%clk 0:02:08]} 13. Bd2 {[%clk 0:01:52]}  Nf6 {[%clk 0:01:52]} 14. Ng3 {[%clk 0:01:44]}  e5 {[%clk 0:01:47]} 15. h3 {[%clk 0:01:22]}  Re8 {[%clk 0:01:38]} 16. Nh5 {[%clk 0:01:19]}  g6 {[%clk 0:01:16]} 17. Nxf6+ {[%clk 0:01:17]}  Qxf6 {[%clk 0:01:16]} 18. Qc1 {[%clk 0:01:16]}  Bf8 {[%clk 0:01:12]} 19. Bg5 {[%clk 0:01:15]}  Qd6 {[%clk 0:01:08]} 20. b3 {[%clk 0:01:12]}  Be6 {[%clk 0:01:07]} 21. f4 {[%clk 0:01:08]}  exf4 {[%clk 0:00:58]} 22. Bxf4 {[%clk 0:01:07]}  Qc5 {[%clk 0:00:56]} 23. Bh6 {[%clk 0:01:02]}  Bg7 {[%clk 0:00:53]} 24. Bxg7 {[%clk 0:01:02]}  Kxg7 {[%clk 0:00:53]} 25. Qf4 {[%clk 0:01:02]}  Qe7 {[%clk 0:00:40]} 26. e5 {[%clk 0:00:59]}  c5 {[%clk 0:00:34]} 27. Rae1 {[%clk 0:00:59]}  Bd5 {[%clk 0:00:30]} 28. g4 {[%clk 0:00:53]}  a5 {[%clk 0:00:23]} 29. a4 {[%clk 0:00:50]}  Rab8 {[%clk 0:00:21]} 30. g5 {[%clk 0:00:46]}  Rb6 {[%clk 0:00:21]} 31. h4 {[%clk 0:00:43]}  Re6 {[%clk 0:00:20]} 32. Bb5 {[%clk 0:00:41]}  Rf8 {[%clk 0:00:18]} 33. Rf2 {[%clk 0:00:35]}  Rh8 {[%clk 0:00:15]} 34. Ref1 {[%clk 0:00:34]}  Rb6 {[%clk 0:00:13]} 35. Bc4 {[%clk 0:00:32]}  Bxc4 {[%clk 0:00:12]} 36. bxc4 {[%clk 0:00:33]}  Rf8 {[%clk 0:00:12]} 37. Qe4 {[%clk 0:00:17]}  Re6 {[%clk 0:00:11]} 38. Qd5 {[%clk 0:00:14]}  h6 {[%clk 0:00:08]} 39. gxh6+ {[%clk 0:00:12]}  Kxh6 {[%clk 0:00:08]} 40. h5 {[%clk 0:00:09]}  Qg5+ {[%clk 0:00:07]} 41. Rg2 {[%clk 0:00:09]}  Qe3+ {[%clk 0:00:06]} 42. Kh1 {[%clk 0:00:09]}  Qxe5 {[%clk 0:00:06]} 43. Qxe5 {[%clk 0:00:07]}  Rxe5 {[%clk 0:00:06]} 44. hxg6 {[%clk 0:00:08]}  Rh5+ {[%clk 0:00:05]} 45. Kg1 {[%clk 0:00:08]}  Rg5 {[%clk 0:00:05]} 46. Rxg5 {[%clk 0:00:08]}  Kxg5 {[%clk 0:00:05]} 47. g7 {[%clk 0:00:07]}  Rg8 {[%clk 0:00:05]} 48. Rxf7 {[%clk 0:00:07]}  Kg6 {[%clk 0:00:05]} 49. Rc7 {[%clk 0:00:07]}  Rxg7 {[%clk 0:00:05]} 50. Rxc5 {[%clk 0:00:07]}  Re7 {[%clk 0:00:05]} 51. Rxa5 {[%clk 0:00:07]}  Re2 {[%clk 0:00:05]} 52. Rd5 {[%clk 0:00:06]}  Rxc2 {[%clk 0:00:05]} 53. Rxd4 {[%clk 0:00:07]}  Kf5 {[%clk 0:00:05]} 54. Kf1 {[%clk 0:00:06]}  Ke5 {[%clk 0:00:05]} 55. Rd5+ {[%clk 0:00:06]}  Ke6 {[%clk 0:00:05]} 56. Rc5 {[%clk 0:00:07]}  Kd6 {[%clk 0:00:05]} 57. Rd5+ {[%clk 0:00:06]}  Kc6 {[%clk 0:00:05]} 58. Rd4 {[%clk 0:00:04]}  Kc5 {[%clk 0:00:06]} 59. Rd8 {[%clk 0:00:00]}  Rxc4 {[%clk 0:00:05]} 0-1


[Site "https://www.chess.com"]

[Event "Titled Tuesday Blitz July 18 Early 2023"]
[White "Saucey, Michel"]
[Black "Liu, Casper"]
[WhiteFideId "601845"]
[BlackFideId "1454153"]
[WhiteElo "2319"]
[BlackElo "2454"]
[Result "1-0"]
[Round "7"]
[TimeControl "180+2"]
[Date "2023.07.18"]
[WhiteClock "0:01:26"]
[BlackClock "0:01:03"]
[Board "143"]

1. d4 {[%clk 0:03:00]}  Nf6 {[%clk 0:02:59]} 2. Nf3 {[%clk 0:03:00]}  g6 {[%clk 0:03:00]} 3. c4 {[%clk 0:02:59]}  Bg7 {[%clk 0:03:01]} 4. g3 {[%clk 0:02:59]}  O-O {[%clk 0:03:01]} 5. Bg2 {[%clk 0:03:00]}  d6 {[%clk 0:03:02]} 6. Nc3 {[%clk 0:02:59]}  Bf5 {[%clk 0:03:02]} 7. O-O {[%clk 0:02:59]}  c6 {[%clk 0:03:03]} 8. Ne1 {[%clk 0:02:56]}  Nbd7 {[%clk 0:03:01]} 9. e4 {[%clk 0:02:55]}  Bg4 {[%clk 0:03:01]} 10. Qc2 {[%clk 0:02:52]}  c5 {[%clk 0:02:58]} 11. d5 {[%clk 0:02:49]}  Ne5 {[%clk 0:02:55]} 12. h3 {[%clk 0:02:45]}  Bd7 {[%clk 0:02:54]} 13. Qe2 {[%clk 0:02:37]}  Nh5 {[%clk 0:02:37]} 14. Kh2 {[%clk 0:02:33]}  f5 {[%clk 0:02:37]} 15. exf5 {[%clk 0:02:28]}  Bxf5 {[%clk 0:02:18]} 16. f4 {[%clk 0:02:02]}  e6 {[%clk 0:01:56]} 17. dxe6 {[%clk 0:01:57]}  Bxe6 {[%clk 0:01:32]} 18. Nd5 {[%clk 0:01:56]}  Kh8 {[%clk 0:01:22]} 19. fxe5 {[%clk 0:01:53]}  Rxf1 {[%clk 0:01:15]} 20. Qxf1 {[%clk 0:01:51]}  Bxd5 {[%clk 0:01:10]} 21. Bxd5 {[%clk 0:01:39]}  Bxe5 {[%clk 0:01:11]} 22. Bf4 {[%clk 0:01:35]}  Bxf4 {[%clk 0:01:09]} 23. gxf4 {[%clk 0:01:35]}  Qh4 {[%clk 0:01:09]} 24. Qf3 {[%clk 0:01:31]}  Nxf4 {[%clk 0:01:03]} 25. Qc3+ {[%clk 0:01:26]} 1-0


[Site "https://www.chess.com"]

[Event "Titled Tuesday Blitz July 18 Early 2023"]
[White "Acikel, Mert"]
[Black "Martin Barcelo, Carles"]
[WhiteFideId "12956465"]
[BlackFideId "24561444"]
[WhiteElo "2315"]
[BlackElo "2452"]
[Result "0-1"]
[Round "7"]
[TimeControl "180+2"]
[Date "2023.07.18"]
[WhiteClock "0:00:41"]
[BlackClock "0:00:14"]
[Board "144"]

1. e4 {[%clk 0:03:00]}  e6 {[%clk 0:02:42]} 2. d4 {[%clk 0:03:00]}  d5 {[%clk 0:02:42]} 3. Nd2 {[%clk 0:03:00]}  dxe4 {[%clk 0:02:42]} 4. Nxe4 {[%clk 0:03:00]}  Nd7 {[%clk 0:02:42]} 5. Nf3 {[%clk 0:03:00]}  Ngf6 {[%clk 0:02:43]} 6. Nxf6+ {[%clk 0:03:01]}  Nxf6 {[%clk 0:02:44]} 7. c3 {[%clk 0:03:01]}  c5 {[%clk 0:02:44]} 8. Ne5 {[%clk 0:02:59]}  a6 {[%clk 0:02:37]} 9. Be2 {[%clk 0:02:58]}  Bd6 {[%clk 0:02:36]} 10. O-O {[%clk 0:02:53]}  O-O {[%clk 0:02:36]} 11. Bf4 {[%clk 0:02:53]}  Qc7 {[%clk 0:02:36]} 12. Re1 {[%clk 0:02:38]}  b5 {[%clk 0:01:57]} 13. Bf3 {[%clk 0:02:35]}  Bb7 {[%clk 0:01:58]} 14. dxc5 {[%clk 0:02:33]}  Bxf3 {[%clk 0:01:44]} 15. cxd6 {[%clk 0:02:21]}  Bxd1 {[%clk 0:01:44]} 16. dxc7 {[%clk 0:02:22]}  Bh5 {[%clk 0:01:41]} 17. Nc6 {[%clk 0:02:09]}  Nd5 {[%clk 0:01:32]} 18. Bd6 {[%clk 0:02:09]}  Rfc8 {[%clk 0:01:32]} 19. Rad1 {[%clk 0:02:07]}  Bxd1 {[%clk 0:01:30]} 20. Rxd1 {[%clk 0:02:07]}  f6 {[%clk 0:01:21]} 21. b3 {[%clk 0:02:07]}  Nxc3 {[%clk 0:01:20]} 22. Ne7+ {[%clk 0:01:56]}  Kf7 {[%clk 0:01:20]} 23. Rd3 {[%clk 0:01:55]}  Nd5 {[%clk 0:01:15]} 24. Nxc8 {[%clk 0:01:54]}  Rxc8 {[%clk 0:01:15]} 25. Kf1 {[%clk 0:01:47]}  Ke8 {[%clk 0:01:14]} 26. a4 {[%clk 0:01:39]}  Kd7 {[%clk 0:01:12]} 27. Bg3 {[%clk 0:01:34]}  Kc6 {[%clk 0:01:11]} 28. Ke2 {[%clk 0:01:28]}  e5 {[%clk 0:01:05]} 29. Kd2 {[%clk 0:01:24]}  Rxc7 {[%clk 0:01:04]} 30. f3 {[%clk 0:01:19]}  Rd7 {[%clk 0:01:02]} 31. Kc1 {[%clk 0:01:16]}  bxa4 {[%clk 0:00:52]} 32. bxa4 {[%clk 0:01:16]}  Rb7 {[%clk 0:00:53]} 33. Be1 {[%clk 0:01:13]}  Nf4 {[%clk 0:00:43]} 34. Rc3+ {[%clk 0:01:11]}  Kd5 {[%clk 0:00:44]} 35. Rc2 {[%clk 0:01:12]}  Kd4 {[%clk 0:00:32]} 36. Kd2 {[%clk 0:01:06]}  Nxg2 {[%clk 0:00:28]} 37. Bf2+ {[%clk 0:01:04]}  Kd5 {[%clk 0:00:27]} 38. a5 {[%clk 0:01:00]}  Rb5 {[%clk 0:00:21]} 39. Bb6 {[%clk 0:01:00]}  Nf4 {[%clk 0:00:19]} 40. Rc7 {[%clk 0:01:00]}  Ne6 {[%clk 0:00:19]} 41. Rd7+ {[%clk 0:01:00]}  Kc6 {[%clk 0:00:18]} 42. Re7 {[%clk 0:01:01]}  Kd6 {[%clk 0:00:19]} 43. Ra7 {[%clk 0:00:59]}  Nc5 {[%clk 0:00:14]} 44. Rxg7 {[%clk 0:00:56]}  Nb3+ {[%clk 0:00:14]} 45. Ke3 {[%clk 0:00:53]}  Nxa5 {[%clk 0:00:15]} 46. Bc7+ {[%clk 0:00:50]}  Ke6 {[%clk 0:00:13]} 47. Rxh7 {[%clk 0:00:41]}  Rb7 {[%clk 0:00:14]} 0-1


[Site "https://www.chess.com"]

[Event "Titled Tuesday Blitz July 18 Early 2023"]
[White "JonSnowNW1"]
[Black "EdmundPlayer"]
[WhiteElo "2439"]
[BlackElo "2309"]
[Result "1-0"]
[Round "7"]
[TimeControl "180+2"]
[Date "2023.07.18"]
[WhiteClock "0:00:08"]
[BlackClock "0:00:03"]
[Board "145"]

1. c4 {[%clk 0:03:00]}  e5 {[%clk 0:02:56]} 2. Nc3 {[%clk 0:02:54]}  Nf6 {[%clk 0:02:56]} 3. g3 {[%clk 0:02:54]}  d5 {[%clk 0:02:55]} 4. cxd5 {[%clk 0:02:54]}  Nxd5 {[%clk 0:02:56]} 5. Bg2 {[%clk 0:02:55]}  Nb6 {[%clk 0:02:57]} 6. Nf3 {[%clk 0:02:55]}  Nc6 {[%clk 0:02:57]} 7. O-O {[%clk 0:02:55]}  Be7 {[%clk 0:02:57]} 8. d3 {[%clk 0:02:54]}  O-O {[%clk 0:02:57]} 9. a3 {[%clk 0:02:54]}  Re8 {[%clk 0:02:57]} 10. Be3 {[%clk 0:02:51]}  Bf8 {[%clk 0:02:54]} 11. Rc1 {[%clk 0:02:51]}  f6 {[%clk 0:02:08]} 12. Ne4 {[%clk 0:02:47]}  Be6 {[%clk 0:01:58]} 13. Nc5 {[%clk 0:02:39]}  Bxc5 {[%clk 0:01:56]} 14. Bxc5 {[%clk 0:02:40]}  Qd7 {[%clk 0:01:55]} 15. Re1 {[%clk 0:02:32]}  Nd5 {[%clk 0:01:51]} 16. Qd2 {[%clk 0:01:49]}  b6 {[%clk 0:01:41]} 17. Be3 {[%clk 0:01:49]}  Na5 {[%clk 0:01:32]} 18. Qc2 {[%clk 0:01:36]}  Nxe3 {[%clk 0:01:18]} 19. fxe3 {[%clk 0:01:37]}  Rac8 {[%clk 0:01:19]} 20. b4 {[%clk 0:01:33]}  Nb3 {[%clk 0:01:08]} 21. Rb1 {[%clk 0:01:33]}  Qa4 {[%clk 0:01:07]} 22. Nd2 {[%clk 0:01:27]}  Nc5 {[%clk 0:01:00]} 23. Qxa4 {[%clk 0:01:12]}  Nxa4 {[%clk 0:01:00]} 24. Bc6 {[%clk 0:01:13]}  Nc3 {[%clk 0:00:46]} 25. Rbc1 {[%clk 0:01:09]}  Na2 {[%clk 0:00:45]} 26. Rc2 {[%clk 0:01:05]}  Red8 {[%clk 0:00:43]} 27. Nc4 {[%clk 0:01:05]}  a6 {[%clk 0:00:20]} 28. b5 {[%clk 0:00:31]}  axb5 {[%clk 0:00:18]} 29. Bxb5 {[%clk 0:00:32]}  c6 {[%clk 0:00:17]} 30. Ba6 {[%clk 0:00:32]}  Ra8 {[%clk 0:00:16]} 31. Bb7 {[%clk 0:00:31]}  Rab8 {[%clk 0:00:15]} 32. Bxc6 {[%clk 0:00:30]}  b5 {[%clk 0:00:13]} 33. Na5 {[%clk 0:00:25]}  b4 {[%clk 0:00:12]} 34. axb4 {[%clk 0:00:21]}  Nxb4 {[%clk 0:00:12]} 35. Rcc1 {[%clk 0:00:19]}  Rd6 {[%clk 0:00:12]} 36. Bg2 {[%clk 0:00:17]}  Ra6 {[%clk 0:00:11]} 37. Nc4 {[%clk 0:00:16]}  Rc8 {[%clk 0:00:09]} 38. Rb1 {[%clk 0:00:14]}  Nc2 {[%clk 0:00:07]} 39. Rec1 {[%clk 0:00:13]}  Bxc4 {[%clk 0:00:06]} 40. Rxc2 {[%clk 0:00:13]}  Be6 {[%clk 0:00:05]} 41. Rxc8+ {[%clk 0:00:09]}  Bxc8 {[%clk 0:00:05]} 42. Rb8 {[%clk 0:00:09]}  Ra1+ {[%clk 0:00:05]} 43. Kf2 {[%clk 0:00:10]}  Rc1 {[%clk 0:00:05]} 44. Bb7 {[%clk 0:00:10]}  Kf7 {[%clk 0:00:05]} 45. Rxc8 {[%clk 0:00:10]}  Rb1 {[%clk 0:00:04]} 46. Bd5+ {[%clk 0:00:11]}  Kg6 {[%clk 0:00:03]} 47. Rc7 {[%clk 0:00:12]}  Rd1 {[%clk 0:00:03]} 48. Rc8 {[%clk 0:00:10]}  Kh6 {[%clk 0:00:03]} 49. Be4 {[%clk 0:00:09]}  Ra1 {[%clk 0:00:03]} 50. Rh8 {[%clk 0:00:08]}  g6 {[%clk 0:00:04]} 51. g4 {[%clk 0:00:09]}  Kg5 {[%clk 0:00:03]} 52. Kg3 {[%clk 0:00:08]}  h6 {[%clk 0:00:03]} 53. h4# {[%clk 0:00:08]} 1-0


[Site "https://www.chess.com"]

[Event "Titled Tuesday Blitz July 18 Early 2023"]
[White "Baches Garcia, Guillermo"]
[Black "Wang, Alexander J"]
[WhiteFideId "2209764"]
[BlackFideId "30955270"]
[WhiteElo "2428"]
[BlackElo "2297"]
[Result "1-0"]
[Round "7"]
[TimeControl "180+2"]
[Date "2023.07.18"]
[WhiteClock "0:00:09"]
[BlackClock "0:00:19"]
[Board "147"]

1. e4 {[%clk 0:03:00]}  c5 {[%clk 0:02:59]} 2. Nf3 {[%clk 0:03:01]}  d6 {[%clk 0:02:59]} 3. d4 {[%clk 0:03:01]}  cxd4 {[%clk 0:02:59]} 4. Nxd4 {[%clk 0:03:01]}  Nf6 {[%clk 0:02:57]} 5. Nc3 {[%clk 0:03:02]}  g6 {[%clk 0:02:55]} 6. Be3 {[%clk 0:03:02]}  Bg7 {[%clk 0:02:53]} 7. f3 {[%clk 0:03:02]}  O-O {[%clk 0:02:48]} 8. Qd2 {[%clk 0:03:02]}  Nc6 {[%clk 0:02:48]} 9. O-O-O {[%clk 0:03:02]}  d5 {[%clk 0:02:38]} 10. Nxc6 {[%clk 0:03:01]}  bxc6 {[%clk 0:02:35]} 11. Bh6 {[%clk 0:03:00]}  Be6 {[%clk 0:02:32]} 12. Bxg7 {[%clk 0:02:54]}  Kxg7 {[%clk 0:02:31]} 13. exd5 {[%clk 0:02:54]}  cxd5 {[%clk 0:02:30]} 14. g4 {[%clk 0:02:54]}  h6 {[%clk 0:02:30]} 15. h4 {[%clk 0:02:49]}  Qa5 {[%clk 0:02:23]} 16. g5 {[%clk 0:02:42]}  hxg5 {[%clk 0:02:22]} 17. hxg5 {[%clk 0:02:35]}  Nh5 {[%clk 0:02:22]} 18. Qd4+ {[%clk 0:02:20]}  Kg8 {[%clk 0:02:12]} 19. Rxh5 {[%clk 0:02:11]}  gxh5 {[%clk 0:02:08]} 20. Bd3 {[%clk 0:02:11]}  Qb6 {[%clk 0:02:03]} 21. Qh4 {[%clk 0:02:00]}  Qe3+ {[%clk 0:01:50]} 22. Kb1 {[%clk 0:01:59]}  Qxf3 {[%clk 0:01:28]} 23. g6 {[%clk 0:01:45]}  fxg6 {[%clk 0:01:14]} 24. Qxe7 {[%clk 0:00:59]}  Bf5 {[%clk 0:01:07]} 25. Be2 {[%clk 0:00:34]}  Qf2 {[%clk 0:00:52]} 26. Rf1 {[%clk 0:00:18]}  Qxf1+ {[%clk 0:00:40]} 27. Bxf1 {[%clk 0:00:18]}  Rae8 {[%clk 0:00:40]} 28. Qh4 {[%clk 0:00:16]}  d4 {[%clk 0:00:26]} 29. Bc4+ {[%clk 0:00:14]}  Kh7 {[%clk 0:00:25]} 30. Ne2 {[%clk 0:00:14]}  Bg4 {[%clk 0:00:24]} 31. b3 {[%clk 0:00:13]}  Bxe2 {[%clk 0:00:23]} 32. Bxe2 {[%clk 0:00:14]}  Rxe2 {[%clk 0:00:24]} 33. Qxd4 {[%clk 0:00:14]}  Re7 {[%clk 0:00:22]} 34. Qd6 {[%clk 0:00:14]}  Ref7 {[%clk 0:00:22]} 35. c4 {[%clk 0:00:13]}  Rf1+ {[%clk 0:00:20]} 36. Kb2 {[%clk 0:00:13]}  R1f2+ {[%clk 0:00:21]} 37. Ka3 {[%clk 0:00:13]}  R2f7 {[%clk 0:00:20]} 38. c5 {[%clk 0:00:13]}  Rg8 {[%clk 0:00:20]} 39. c6 {[%clk 0:00:11]}  Rgg7 {[%clk 0:00:21]} 40. b4 {[%clk 0:00:09]}  Rc7 {[%clk 0:00:21]} 41. b5 {[%clk 0:00:09]}  Rgf7 {[%clk 0:00:21]} 42. Kb4 {[%clk 0:00:08]}  Rfe7 {[%clk 0:00:20]} 43. a4 {[%clk 0:00:08]}  Re4+ {[%clk 0:00:20]} 44. Kb3 {[%clk 0:00:08]}  Ree7 {[%clk 0:00:20]} 45. a5 {[%clk 0:00:08]}  Re3+ {[%clk 0:00:19]} 46. Kb4 {[%clk 0:00:08]}  Re4+ {[%clk 0:00:19]} 47. Kc5 {[%clk 0:00:08]}  Ree7 {[%clk 0:00:19]} 48. b6 {[%clk 0:00:09]}  axb6+ {[%clk 0:00:19]} 49. axb6 {[%clk 0:00:09]}  Rxc6+ {[%clk 0:00:18]} 50. Kxc6 {[%clk 0:00:08]}  Re1 {[%clk 0:00:18]} 51. b7 {[%clk 0:00:08]}  Rc1+ {[%clk 0:00:18]} 52. Kd7 {[%clk 0:00:09]}  Rb1 {[%clk 0:00:19]} 53. b8=Q {[%clk 0:00:09]}  Rxb8 {[%clk 0:00:20]} 54. Qxb8 {[%clk 0:00:09]}  Kh6 {[%clk 0:00:21]} 55. Ke6 {[%clk 0:00:09]}  Kg5 {[%clk 0:00:19]} 56. Qg3+ {[%clk 0:00:09]} 1-0


[Site "https://www.chess.com"]

[Event "Titled Tuesday Blitz July 18 Early 2023"]
[White "Mikhaylova, Irina"]
[Black "Vivas Zamora, Fabian Ernesto"]
[WhiteFideId "4109040"]
[BlackFideId "3902480"]
[WhiteElo "2292"]
[BlackElo "2412"]
[Result "0-1"]
[Round "7"]
[TimeControl "180+2"]
[Date "2023.07.18"]
[WhiteClock "0:00:35"]
[BlackClock "0:00:40"]
[Board "148"]

1. d4 {[%clk 0:03:00]}  Nf6 {[%clk 0:02:59]} 2. Nf3 {[%clk 0:03:01]}  g6 {[%clk 0:02:58]} 3. c4 {[%clk 0:03:01]}  Bg7 {[%clk 0:02:58]} 4. Nc3 {[%clk 0:03:02]}  d5 {[%clk 0:02:58]} 5. cxd5 {[%clk 0:03:02]}  Nxd5 {[%clk 0:02:59]} 6. Na4 {[%clk 0:03:03]}  O-O {[%clk 0:02:57]} 7. e4 {[%clk 0:03:03]}  Nb6 {[%clk 0:02:57]} 8. Be3 {[%clk 0:03:04]}  Bg4 {[%clk 0:02:53]} 9. Be2 {[%clk 0:03:03]}  Nc6 {[%clk 0:02:48]} 10. d5 {[%clk 0:03:03]}  Ne5 {[%clk 0:02:25]} 11. Nxb6 {[%clk 0:03:02]}  Bxf3 {[%clk 0:02:12]} 12. gxf3 {[%clk 0:02:50]}  axb6 {[%clk 0:02:12]} 13. f4 {[%clk 0:02:51]}  Nd7 {[%clk 0:02:11]} 14. Qc2 {[%clk 0:02:48]}  Nc5 {[%clk 0:02:03]} 15. a3 {[%clk 0:02:36]}  e6 {[%clk 0:01:56]} 16. Rd1 {[%clk 0:02:34]}  exd5 {[%clk 0:01:51]} 17. Rxd5 {[%clk 0:02:34]}  Qe7 {[%clk 0:01:44]} 18. Bxc5 {[%clk 0:02:31]}  bxc5 {[%clk 0:01:43]} 19. Rxc5 {[%clk 0:02:31]}  Bxb2 {[%clk 0:01:36]} 20. Rxc7 {[%clk 0:02:27]}  Qxa3 {[%clk 0:01:35]} 21. O-O {[%clk 0:02:27]}  Bg7 {[%clk 0:01:20]} 22. Rxb7 {[%clk 0:02:19]}  Qd6 {[%clk 0:01:16]} 23. f5 {[%clk 0:01:59]}  Qf4 {[%clk 0:01:12]} 24. Kg2 {[%clk 0:01:36]}  Be5 {[%clk 0:01:05]} 25. Rh1 {[%clk 0:01:36]}  Qg5+ {[%clk 0:01:03]} 26. Kf3 {[%clk 0:01:21]}  Rfc8 {[%clk 0:01:00]} 27. Bc4 {[%clk 0:01:04]}  Ra3+ {[%clk 0:00:52]} 28. Ke2 {[%clk 0:01:03]}  Qg4+ {[%clk 0:00:45]} 29. Kd2 {[%clk 0:00:47]}  Bf4+ {[%clk 0:00:44]} 30. Ke1 {[%clk 0:00:43]}  Ra1+ {[%clk 0:00:41]} 31. Rb1 {[%clk 0:00:35]}  Rxc4 {[%clk 0:00:40]} 0-1


[Site "https://www.chess.com"]